[Event "13th Leiden Open 2019"]
[Site "Leiden"]
[Date "2019.07.12"]
[Round "1.7"]
[White "Ikonnikov, Vyacheslav"]
[Black "Johansson, Jukka"]
[Result "1-0"]
[ECO "E15"]
[WhiteElo "2499"]
[BlackElo "2075"]
[Annotator "ChessBase"]
[PlyCount "83"]
[EventDate "2019.07.08"]
[EventType "swiss"]
[EventCountry "NED"]
[SourceTitle "playchess.com"]
[Source "ChessBase"]
[SourceQuality "1"]
[TimeControl "40/5400+30:1800+30"]

1. d4 {[%emt 0:00:00]} Nf6 {[%emt 0:00:00]} 2. Nf3 {[%emt 0:00:00]} e6 {[%emt 0:00:00]} 3. c4 {[%emt 0:00:00]} b6 {[%emt 0:00:13]} 4. g3 {[%emt 0:00:18]} Ba6 {[%emt 0:00:32]} 5. b3 {[%emt 0:00:16]} Bb4+ {[%emt 0:00:32]} 6. Bd2 {[%emt 0:00:16]} Be7 {[%emt 0:00:28]} 7. Bg2 {[%emt 0:00:22]} d5 {[%emt 0:01:13]} 8. cxd5 {[%emt 0:00:37]} exd5 {[%emt 0:00:27]} 9. O-O {[%emt 0:00:42]} O-O {[%emt 0:00:21]} 10. Nc3 {[%emt 0:00:35]} Nbd7 {[%emt 0:05:02]} 11. Qc2 {[%emt 0:02:52]} Bb7 {[%emt 0:04:42]} 12. Rfd1 {[%emt 0:02:02]} Rc8 {[%emt 0:04:12]} 13. Nb5 {[%emt 0:16:03]} c5 {[%emt 0:18:14]} 14. Nxa7 {[%emt 0:00:39]} Ra8 {[%emt 0:00:18]} 15. Nb5 {[%emt 0:00:06]} Rc8 {[%emt 0:00:13]} 16. Qb2 {[%emt 0:03:49]} Ne4 {[%emt 0:03:19]} 17. Bf4 {[%emt 0:02:47]} g5 {[%emt 0:11:28]} 18. Bd2 {[%emt 0:02:31]} Bf6 {[%emt 0:06:42]} 19. Ne5 {[%emt 0:09:31]} Qe7 {[%emt 0:08:57]} 20. Nxd7 {[%emt 0:17:31]} Qxd7 {[%emt 0:00:10]} 21. a4 {[%emt 0:00:02]} Ba6 {[%emt 0:06:28]} 22. Bxe4 {[%emt 0:04:14]} dxe4 {[%emt 0:01:00]} 23. Bc3 {[%emt 0:00:05]} Rfd8 {[%emt 0:04:09]} 24. d5 {[%emt 0:02:18]} Bxc3 {[%emt 0:01:44]} 25. Nxc3 {[%emt 0:00:16]} Re8 {[%emt 0:07:35]} 26. d6 {[%emt 0:01:47]} Bb7 {[%emt 0:01:55]} 27. Nd5 {[%emt 0:00:58]} Bxd5 {[%emt 0:00:48]} 28. Rxd5 {[%emt 0:00:06]} h6 {[%emt 0:00:28]} 29. Qf6 {[%emt 0:06:23]} Qe6 {[%emt 0:02:08]} 30. Qxe6 {[%emt 0:04:12]} Rxe6 {[%emt 0:05:54]} 31. a5 {[%emt 0:01:44]} bxa5 {[%emt 0:00:56]} 32. Rxa5 {[%emt 0:00:05]} Rd8 {[%emt 0:00:26]} 33. Ra6 {[%emt 0:01:16]} Kg7 {[%emt 0:00:27]} 34. e3 {[%emt 0:02:52]} Rd7 {[%emt 0:01:16]} 35. Rc6 {[%emt 0:00:17]} Kf6 {[%emt 0:00:52]} 36. Kf1 {[%emt 0:01:32]} Re5 {[%emt 0:01:04]} 37. Rcxc5 {[%emt 0:00:40]} Rxd5 {[%emt 0:00:20]} 38. Rxd5 {[%emt 0:00:07]} Ke6 {[%emt 0:01:48]} 39. Rd4 {[%emt 0:00:11]} f5 {[%emt 0:00:18]} 40. Ke2 {[%emt 0:00:17]} Rxd6 {[%emt 0:02:11]} 41. Rxd6+ {[%emt 0:30:50]} Kxd6 {[%emt 0:30:08]} 42. Kd2 {[%emt 0:00:05]} 1-0

[Event "13th Leiden Open 2019"]
[Site "Leiden"]
[Date "2019.07.12"]
[Round "1.10"]
[White "Baak, Evert"]
[Black "Bueno, Mark"]
[Result "0-1"]
[ECO "E02"]
[WhiteElo "1807"]
[BlackElo "1976"]
[Annotator "NA"]
[PlyCount "60"]
[EventDate "2019.07.08"]
[EventType "swiss"]
[EventCountry "NED"]
[SourceTitle "playchess.com"]
[Source "ChessBase"]
[SourceQuality "1"]
[TimeControl "40/5400+30:1800+30"]

1. Nf3 {[%emt 0:00:00]} Nf6 {[%emt 0:00:00]} 2. d4 {[%emt 0:00:00]} e6 {[%emt 0:00:00]} 3. c4 {[%emt 0:00:20]} d5 {[%emt 0:00:15]} 4. g3 {[%emt 0:00:26]} Be7 {[%emt 0:00:05]} 5. Bg2 {[%emt 0:00:07]} O-O {[%emt 0:00:05]} 6. O-O {[%emt 0:00:56]} dxc4 {[%emt 0:00:04]} 7. Qa4 {[%emt 0:01:04]} Bd7 {[%emt 0:00:36]} 8. Qxc4 {[%emt 0:00:10]} Bc6 {[%emt 0:00:07]} 9. Nc3 {[%emt 0:02:26]} Nbd7 {[%emt 0:00:07]} 10. Rd1 {[%emt 0:07:54]} Nb6 {[%emt 0:00:57]} 11. Qd3 {[%emt 0:01:05]} Nbd5 {[%emt 0:03:02]} 12. Ne5 {[%emt 0:05:21]} Nxc3 {[%emt 0:01:56]} 13. bxc3 {[%emt 0:10:27]} Bxg2 {[%emt 0:00:21]} 14. Kxg2 {[%emt 0:00:01]} Qd5+ {[%emt 0:02:38]} 15. f3 {[%emt 0:02:18]} Rfd8 {[%emt 0:01:29]} 16. a4 {[%emt 0:15:01]} Nd7 {[%emt 0:02:57]} 17. Nc4 {[%emt 0:02:56]} b6 {[%emt 0:10:48]} 18. e4 {[%emt 0:07:37]} Qb7 {[%emt 0:00:24]} 19. Ne3 {[%emt 0:02:43]} c5 {[%emt 0:02:35]} 20. Ba3 {[%emt 0:00:48]} Rac8 {[%emt 0:19:01]} 21. Qb5 {[%emt 0:09:06]} Qc7 {[%emt 0:31:48]} 22. Rac1 {[%emt 0:12:36]} h5 {[%emt 0:04:42]} 23. f4 {[%emt 0:03:13]} Qb7 {[%emt 0:03:00]} 24. d5 {[%emt 0:00:10]} Nf6 {[%emt 0:00:08]} 25. Qd3 {[%emt 0:01:47]} exd5 {[%emt 0:00:09]} 26. exd5 {[%emt 0:00:08]} c4 {[%emt 0:00:56]} 27. Nxc4 {[%emt 0:00:53]} Bxa3 {[%emt 0:02:19]} 28. Nxa3 {[%emt 0:00:15]} Nxd5 {[%emt 0:01:18]} 29. Kg1 {[%emt 0:01:17]} Qe7 {[%emt 0:00:19]} 30. Nb5 {[%emt 0:00:57]} Nxf4 {[%emt 0:02:06]} 0-1

[Event "13th Leiden Open 2019"]
[Site "Leiden"]
[Date "2019.07.13"]
[Round "2.6"]
[White "Chanda, Sandipan"]
[Black "Damen, Jip"]
[Result "1-0"]
[ECO "E52"]
[WhiteElo "2516"]
[BlackElo "2179"]
[Annotator "ChessBase"]
[PlyCount "49"]
[EventDate "2019.07.08"]
[EventType "swiss"]
[EventCountry "NED"]
[SourceTitle "playchess.com"]
[Source "ChessBase"]
[SourceQuality "1"]
[TimeControl "40/5400+30:1800+30"]

1. d4 Nf6 2. c4 e6 3. Nc3 Bb4 4. e3 O-O 5. Bd2 b6 6. Nf3 Bb7 7. Bd3 d5 8. cxd5 exd5 9. Rc1 Be7 10. O-O c5 11. Ne5 Nc6 12. Ba6 Bxa6 13. Nxc6 Qc7 14. Nxe7+ Qxe7 15. Re1 Rac8 16. f3 cxd4 17. exd4 Qb4 18. Bg5 Qxb2 19. Rc2 Qa3 20. Bxf6 gxf6 21. Nxd5 Rxc2 22. Qxc2 Qd6 23. Ne7+ Kh8 24. Re4 Qa3 25. Qc6 1-0

[Event "13th Leiden Open 2019"]
[Site "Leiden"]
[Date "2019.07.13"]
[Round "2.7"]
[White "Suvrajit, Saha"]
[Black "Ikonnikov, Vyacheslav"]
[Result "1/2-1/2"]
[ECO "E11"]
[WhiteElo "2189"]
[BlackElo "2499"]
[Annotator "ChessBase"]
[PlyCount "72"]
[EventDate "2019.07.08"]
[EventType "swiss"]
[EventCountry "NED"]
[SourceTitle "playchess.com"]
[Source "ChessBase"]
[SourceQuality "1"]
[TimeControl "40/5400+30:1800+30"]

1. d4 {[%emt 0:00:00]} Nf6 {[%emt 0:00:00]} 2. c4 {[%emt 0:00:00]} e6 {[%emt 0:00:10]} 3. Nf3 {[%emt 0:00:43]} Bb4+ {[%emt 0:00:22]} 4. Bd2 {[%emt 0:00:15]} a5 {[%emt 0:00:14]} 5. a3 {[%emt 0:01:31]} Bxd2+ {[%emt 0:03:32]} 6. Qxd2 {[%emt 0:00:10]} d6 {[%emt 0:00:26]} 7. Nc3 {[%emt 0:00:08]} Nbd7 {[%emt 0:00:31]} 8. g3 {[%emt 0:00:20]} O-O {[%emt 0:03:00]} 9. Bg2 {[%emt 0:00:06]} e5 {[%emt 0:00:16]} 10. O-O {[%emt 0:03:06]} exd4 {[%emt 0:02:52]} 11. Nxd4 {[%emt 0:00:09]} a4 {[%emt 0:00:05]} 12. Rac1 {[%emt 0:02:34]} Nc5 {[%emt 0:15:35]} 13. Nd5 {[%emt 0:02:47]} c6 {[%emt 0:09:19]} 14. Nxf6+ {[%emt 0:01:27]} Qxf6 {[%emt 0:00:03]} 15. Rfd1 {[%emt 0:02:42]} Be6 {[%emt 0:14:11]} 16. Qf4 {[%emt 0:09:17]} Qxf4 {[%emt 0:10:01]} 17. gxf4 {[%emt 0:00:03]} Rfd8 {[%emt 0:00:06]} 18. Rc3 {[%emt 0:03:33]} f6 {[%emt 0:08:27]} 19. Bh3 {[%emt 0:12:10]} Bf7 {[%emt 0:00:55]} 20. Nf5 {[%emt 0:03:25]} Kf8 {[%emt 0:01:23]} 21. Nxd6 {[%emt 0:08:12]} Ne4 {[%emt 0:01:15]} 22. Rcd3 {[%emt 0:00:38]} Rxd6 {[%emt 0:00:23]} 23. Rxd6 {[%emt 0:00:04]} Nxd6 {[%emt 0:00:05]} 24. Rxd6 {[%emt 0:00:04]} Bxc4 {[%emt 0:00:05]} 25. e3 {[%emt 0:02:42]} Bd5 {[%emt 0:02:22]} 26. Rd7 {[%emt 0:10:17]} Ra5 {[%emt 0:01:32]} 27. Rxb7 {[%emt 0:01:06]} Rc5 {[%emt 0:00:06]} 28. f3 {[%emt 0:01:54]} Bb3 {[%emt 0:04:48]} 29. e4 {[%emt 0:03:21]} Rc2 {[%emt 0:02:46]} 30. e5 {[%emt 0:04:08]} fxe5 {[%emt 0:00:07]} 31. fxe5 {[%emt 0:00:02]} Rxb2 {[%emt 0:00:05]} 32. Bf5 {[%emt 0:03:06]} Re2 {[%emt 0:04:38]} 33. Rb8+ {[%emt 0:01:53]} Ke7 {[%emt 0:01:08]} 34. Rb7+ {[%emt 0:00:09]} Kf8 {[%emt 0:02:24]} 35. Rb8+ {[%emt 0:03:35]} Ke7 {[%emt 0:01:27]} 36. Rb7+ {[%emt 0:00:27]} Kf8 {[%emt 0:10:27]} 1/2-1/2

[Event "13th Leiden Open 2019"]
[Site "Leiden"]
[Date "2019.07.13"]
[Round "2.8"]
[White "Beerdsen, Thomas"]
[Black "Gieben, Stijn"]
[Result "1-0"]
[ECO "B84"]
[WhiteElo "2497"]
[BlackElo "2149"]
[Annotator "ChessBase"]
[PlyCount "55"]
[EventDate "2019.07.08"]
[EventType "swiss"]
[EventCountry "NED"]
[SourceTitle "playchess.com"]
[Source "ChessBase"]
[SourceQuality "1"]
[TimeControl "40/5400+30:1800+30"]

1. e4 c5 2. Nf3 e6 3. d4 cxd4 4. Nxd4 Nc6 5. Nc3 Qc7 6. Be3 a6 7. Qd2 Nf6 8. f4 d6 9. O-O-O Be7 10. Kb1 O-O 11. Be2 Bd7 12. g4 Nxd4 13. Bxd4 Bc6 14. Bf3 Nd7 15. Be3 b5 16. g5 Qb7 17. Nd5 Bd8 18. Rhg1 Re8 19. Qg2 Bxd5 20. exd5 e5 21. f5 e4 22. g6 hxg6 23. fxg6 f5 24. Qh3 Nf6 25. Be2 Re5 26. Bd4 Rxd5 27. Bxf6 Bxf6 28. Qb3 1-0

[Event "13th Leiden Open 2019"]
[Site "Leiden"]
[Date "2019.07.13"]
[Round "2.9"]
[White "Hoogland, Mike"]
[Black "Ivanov, Sergey"]
[Result "1/2-1/2"]
[ECO "E15"]
[WhiteElo "2148"]
[BlackElo "2496"]
[Annotator "RC"]
[PlyCount "100"]
[EventDate "2019.07.08"]
[EventType "swiss"]
[EventCountry "NED"]
[SourceTitle "playchess.com"]
[Source "ChessBase"]
[SourceQuality "1"]
[TimeControl "40/5400+30:1800+30"]

1. d4 {[%emt 0:00:00]} Nf6 {[%emt 0:00:00]} 2. c4 {[%emt 0:00:00]} e6 {[%emt 0:00:00]} 3. Nf3 {[%emt 0:00:00]} b6 {[%emt 0:00:09]} 4. g3 {[%emt 0:00:06]} Ba6 {[%emt 0:00:11]} 5. b3 {[%emt 0:00:09]} d5 {[%emt 0:00:14]} 6. Bg2 {[%emt 0:00:32]} Bb4+ {[%emt 0:00:21]} 7. Bd2 {[%emt 0:00:20]} Be7 {[%emt 0:00:10]} 8. O-O {[%emt 0:03:09]} O-O {[%emt 0:00:12]} 9. Nc3 {[%emt 0:01:35]} Bb7 {[%emt 0:04:29]} 10. Bf4 {[%emt 0:02:05]} c5 {[%emt 0:06:47]} 11. Qd3 {[%emt 0:11:21]} Na6 {[%emt 0:20:17]} 12. Rad1 {[%emt 0:06:18]} Qc8 {[%emt 0:07:12]} 13. Nb5 {[%emt 0:07:41]} Rd8 {[%emt 0:02:13]} 14. Qb1 {[%emt 0:05:56]} dxc4 {[%emt 0:03:14]} 15. bxc4 {[%emt 0:00:51]} cxd4 {[%emt 0:00:55]} 16. Nfxd4 {[%emt 0:00:38]} Bxg2 {[%emt 0:01:48]} 17. Kxg2 {[%emt 0:00:05]} Qxc4 {[%emt 0:07:00]} 18. e4 {[%emt 0:02:06]} Qc8 {[%emt 0:03:15]} 19. Rc1 {[%emt 0:05:01]} Nc5 {[%emt 0:01:11]} 20. Rfd1 {[%emt 0:07:09]} Qb7 {[%emt 0:07:01]} 21. f3 {[%emt 0:02:01]} Rd7 {[%emt 0:01:29]} 22. Nb3 {[%emt 0:05:09]} Rad8 {[%emt 0:02:19]} 23. Nxc5 {[%emt 0:00:28]} Bxc5 {[%emt 0:01:24]} 24. Kh3 {[%emt 0:10:48]} h6 {[%emt 0:03:37]} 25. Bc7 {[%emt 0:03:52]} Rxd1 {[%emt 0:02:13]} 26. Rxd1 {[%emt 0:00:12]} Rd7 {[%emt 0:00:36]} 27. Be5 {[%emt 0:02:28]} Nh7 {[%emt 0:01:43]} 28. Kg2 {[%emt 0:00:59]} f5 {[%emt 0:04:28]} 29. exf5 {[%emt 0:06:31]} Ng5 {[%emt 0:03:22]} 30. Qb3 {[%emt 0:00:29]} Rxd1 {[%emt 0:04:40]} 31. Qxd1 {[%emt 0:00:28]} exf5 {[%emt 0:00:08]} 32. Qd3 {[%emt 0:05:06]} Qf7 {[%emt 0:02:56]} 33. Nc3 {[%emt 0:01:31]} Qe6 {[%emt 0:00:44]} 34. Bf4 {[%emt 0:02:03]} Nf7 {[%emt 0:00:32]} 35. Nd5 {[%emt 0:02:44]} Ne5 {[%emt 0:06:17]} 36. Bxe5 {[%emt 0:00:26]} Qxe5 {[%emt 0:00:07]} 37. a4 {[%emt 0:03:17]} g5 {[%emt 0:02:17]} 38. Nc3 {[%emt 0:02:12]} Kf7 {[%emt 0:01:47]} 39. Qc4+ {[%emt 0:01:45]} Kg7 {[%emt 0:00:25]} 40. Qd3 {[%emt 0:00:56]} h5 {[%emt 0:01:09]} 41. g4 {[%emt 0:13:49]} fxg4 {[%emt 0:06:53]} 42. fxg4 {[%emt 0:00:39]} Bd6 {[%emt 0:00:32]} 43. Ne4 {[%emt 0:08:46]} Qxh2+ {[%emt 0:01:42]} 44. Kf1 {[%emt 0:00:09]} Qf4+ {[%emt 0:01:03]} 45. Ke1 {[%emt 0:01:00]} Bb4+ {[%emt 0:00:51]} 46. Kd1 {[%emt 0:00:11]} Qxg4+ {[%emt 0:00:15]} 47. Kc2 {[%emt 0:00:16]} Be7 {[%emt 0:01:07]} 48. Qc3+ {[%emt 0:00:50]} Kf7 {[%emt 0:00:40]} 49. Qb3+ {[%emt 0:00:59]} Qe6 {[%emt 0:01:07]} 50. Qf3+ {[%emt 0:00:37]} Kg6 {[%emt 0:01:10]} 1/2-1/2

[Event "13th Leiden Open 2019"]
[Site "Leiden"]
[Date "2019.07.13"]
[Round "2.10"]
[White "Bueno, Mark"]
[Black "Baak, Karl"]
[Result "1-0"]
[ECO "C00"]
[WhiteElo "1976"]
[BlackElo "1851"]
[Annotator "NA"]
[PlyCount "55"]
[EventDate "2019.07.08"]
[EventType "swiss"]
[EventCountry "NED"]
[SourceTitle "playchess.com"]
[Source "ChessBase"]
[SourceQuality "1"]
[TimeControl "40/5400+30:1800+30"]

1. e4 {[%emt 0:00:00]} e6 {[%emt 0:00:00]} 2. d3 {[%emt 0:00:00]} d5 {[%emt 0:00:12]} 3. Nd2 {[%emt 0:00:00]} c5 {[%emt 0:00:26]} 4. Ngf3 {[%emt 0:00:12]} Nc6 {[%emt 0:00:17]} 5. g3 {[%emt 0:00:07]} Nf6 {[%emt 0:00:23]} 6. Bg2 {[%emt 0:00:07]} Be7 {[%emt 0:00:13]} 7. O-O {[%emt 0:00:07]} O-O {[%emt 0:00:35]} 8. e5 {[%emt 0:00:09]} Nd7 {[%emt 0:00:20]} 9. Re1 {[%emt 0:00:07]} Qc7 {[%emt 0:00:15]} 10. Qe2 {[%emt 0:00:05]} b5 {[%emt 0:00:28]} 11. Nf1 {[%emt 0:00:14]} a5 {[%emt 0:00:57]} 12. Bf4 {[%emt 0:00:36]} Ba6 {[%emt 0:03:47]} 13. h4 {[%emt 0:00:09]} Nd4 {[%emt 0:00:48]} 14. Nxd4 {[%emt 0:00:19]} cxd4 {[%emt 0:00:10]} 15. h5 {[%emt 0:00:13]} h6 {[%emt 0:04:15]} 16. Nh2 {[%emt 0:00:15]} Rfc8 {[%emt 0:00:14]} 17. Rec1 {[%emt 0:04:48]} Qd8 {[%emt 0:04:31]} 18. Nf3 {[%emt 0:01:31]} Qb6 {[%emt 0:04:01]} 19. Qd2 {[%emt 0:05:04]} Bf8 {[%emt 0:00:29]} 20. g4 {[%emt 0:03:31]} Rc6 {[%emt 0:12:54]} 21. g5 {[%emt 0:03:32]} Kh7 {[%emt 0:00:52]} 22. Kh1 {[%emt 0:03:31]} Rac8 {[%emt 0:00:38]} 23. Bh2 {[%emt 0:15:40]} Bb4 {[%emt 0:18:48]} 24. Qf4 {[%emt 0:02:36]} Rf8 {[%emt 0:00:19]} 25. gxh6 {[%emt 0:02:12]} gxh6 {[%emt 0:00:47]} 26. Rg1 {[%emt 0:13:10]} Rxc2 {[%emt 0:11:27]} 27. Nxd4 {[%emt 0:01:19]} Rxf2 {[%emt 0:05:26]} 28. Be4+ {[%emt 0:03:24]} 1-0

[Event "13th Leiden Open 2019"]
[Site "Leiden"]
[Date "2019.07.14"]
[Round "3.1"]
[White "Nikolic, Predrag"]
[Black "Kuipers, Stefan"]
[Result "1/2-1/2"]
[ECO "A32"]
[WhiteElo "2574"]
[BlackElo "2435"]
[Annotator "ChessBase"]
[PlyCount "69"]
[EventDate "2019.07.08"]
[EventType "swiss"]
[EventCountry "NED"]
[SourceTitle "playchess.com"]
[Source "ChessBase"]
[SourceQuality "1"]
[TimeControl "40/5400+30:1800+30"]

1. d4 {[%emt 0:00:00]} Nf6 {[%emt 0:00:00]} 2. c4 {[%emt 0:00:22]} c5 {[%emt 0:00:00]} 3. Nf3 {[%emt 0:01:39]} e6 {[%emt 0:00:32]} 4. g3 {[%emt 0:00:39]} cxd4 {[%emt 0:00:49]} 5. Nxd4 {[%emt 0:00:07]} Nc6 {[%emt 0:00:20]} 6. Bg2 {[%emt 0:01:23]} Bc5 {[%emt 0:02:43]} 7. Nb3 {[%emt 0:00:44]} Bb6 {[%emt 0:00:16]} 8. Nc3 {[%emt 0:02:54]} O-O {[%emt 0:04:46]} 9. O-O {[%emt 0:01:33]} h6 {[%emt 0:09:39]} 10. c5 {[%emt 0:19:22]} Bc7 {[%emt 0:01:38]} 11. Be3 {[%emt 0:00:07]} Ng4 {[%emt 0:11:55]} 12. Qc1 {[%emt 0:03:13]} b6 {[%emt 0:20:48]} 13. Rd1 {[%emt 0:03:49]} Nxe3 {[%emt 0:01:53]} 14. Qxe3 {[%emt 0:00:28]} Qg5 {[%emt 0:03:22]} 15. Qxg5 {[%emt 0:16:59]} hxg5 {[%emt 0:00:07]} 16. cxb6 {[%emt 0:00:07]} Bxb6 {[%emt 0:02:40]} 17. Na4 {[%emt 0:04:44]} d5 {[%emt 0:03:47]} 18. e4 {[%emt 0:02:18]} Ne7 {[%emt 0:03:22]} 19. exd5 {[%emt 0:03:16]} Nxd5 {[%emt 0:01:14]} 20. Bxd5 {[%emt 0:02:28]} exd5 {[%emt 0:00:07]} 21. Nxb6 {[%emt 0:00:04]} axb6 {[%emt 0:00:07]} 22. f3 {[%emt 0:05:04]} g4 {[%emt 0:03:49]} 23. fxg4 {[%emt 0:01:46]} Bxg4 {[%emt 0:00:28]} 24. Rxd5 {[%emt 0:00:06]} Rfd8 {[%emt 0:08:46]} 25. Rb5 {[%emt 0:05:09]} Rac8 {[%emt 0:04:45]} 26. Rb4 {[%emt 0:00:18]} Be6 {[%emt 0:03:19]} 27. Nd4 {[%emt 0:02:19]} Bc4 {[%emt 0:01:00]} 28. Nf5 {[%emt 0:02:51]} Rc5 {[%emt 0:01:03]} 29. Ne3 {[%emt 0:04:41]} Be6 {[%emt 0:00:32]} 30. Rxb6 {[%emt 0:04:24]} Rd2 {[%emt 0:00:35]} 31. Re1 {[%emt 0:00:42]} Bxa2 {[%emt 0:00:47]} 32. Nf1 {[%emt 0:00:41]} Rdc2 {[%emt 0:01:07]} 33. Ne3 {[%emt 0:03:36]} Rd2 {[%emt 0:00:06]} 34. Nf1 {[%emt 0:00:03]} Rdc2 {[%emt 0:00:05]} 35. Ne3 {[%emt 0:04:44]} 1/2-1/2

[Event "13th Leiden Open 2019"]
[Site "Leiden"]
[Date "2019.07.14"]
[Round "3.2"]
[White "Pruijssers, Roeland"]
[Black "Pijpers, Arthur"]
[Result "1/2-1/2"]
[ECO "C08"]
[WhiteElo "2534"]
[BlackElo "2474"]
[Annotator "ChessBase"]
[PlyCount "80"]
[EventDate "2019.07.08"]
[EventType "swiss"]
[EventCountry "NED"]
[SourceTitle "playchess.com"]
[Source "ChessBase"]
[SourceQuality "1"]
[TimeControl "40/5400+30:1800+30"]

1. e4 {[%emt 0:01:02]} e6 {[%emt 0:00:00]} 2. d4 {[%emt 0:00:06]} d5 {[%emt 0:00:00]} 3. Nd2 {[%emt 0:00:08]} c5 {[%emt 0:00:00]} 4. exd5 {[%emt 0:00:16]} exd5 {[%emt 0:00:00]} 5. Ngf3 {[%emt 0:00:34]} Nf6 {[%emt 0:00:00]} 6. Bb5+ {[%emt 0:00:18]} Bd7 {[%emt 0:00:00]} 7. Bxd7+ {[%emt 0:00:09]} Nbxd7 {[%emt 0:00:01]} 8. O-O {[%emt 0:00:12]} Be7 {[%emt 0:00:03]} 9. dxc5 Nxc5 {[%emt 0:00:04]} 10. Re1 {[%emt 0:00:32]} O-O {[%emt 0:00:08]} 11. Nf1 {[%emt 0:00:06]} Re8 {[%emt 0:01:05]} 12. Be3 {[%emt 0:03:50]} a5 {[%emt 0:23:20]} 13. h3 {[%emt 0:07:52]} a4 {[%emt 0:01:07]} 14. a3 {[%emt 0:00:59]} Qd7 {[%emt 0:15:03]} 15. Bd4 {[%emt 0:06:53]} Ne6 {[%emt 0:00:59]} 16. Be5 {[%emt 0:00:26]} Rad8 {[%emt 0:04:43]} 17. Ng3 {[%emt 0:16:01]} Nc5 {[%emt 0:04:17]} 18. Bd4 {[%emt 0:23:39]} Ne6 {[%emt 0:05:29]} 19. Nf5 {[%emt 0:05:54]} Nxd4 {[%emt 0:01:34]} 20. Nxe7+ {[%emt 0:03:09]} Rxe7 {[%emt 0:00:04]} 21. Nxd4 {[%emt 0:00:19]} Ne4 {[%emt 0:02:01]} 22. Qd3 {[%emt 0:01:53]} Rde8 {[%emt 0:17:40]} 23. Rad1 {[%emt 0:01:32]} Qc7 {[%emt 0:11:36]} 24. Re2 {[%emt 0:10:17]} g6 {[%emt 0:02:47]} 25. Rde1 {[%emt 0:04:07]} Qb6 {[%emt 0:01:17]} 26. c3 {[%emt 0:01:23]} Nc5 {[%emt 0:01:59]} 27. Qc2 {[%emt 0:00:26]} Re4 {[%emt 0:01:49]} 28. Qd2 {[%emt 0:04:29]} Qa6 {[%emt 0:01:06]} 29. Re3 {[%emt 0:01:40]} Nd3 {[%emt 0:01:31]} 30. R1e2 {[%emt 0:01:52]} Rxe3 {[%emt 0:00:05]} 31. Rxe3 {[%emt 0:00:05]} Rxe3 {[%emt 0:00:05]} 32. Qxe3 {[%emt 0:00:18]} Nxb2 {[%emt 0:00:41]} 33. Qe8+ {[%emt 0:00:07]} Kg7 {[%emt 0:00:03]} 34. Qe5+ {[%emt 0:00:06]} Qf6 {[%emt 0:01:17]} 35. Qxd5 {[%emt 0:00:08]} Nd1 {[%emt 0:00:45]} 36. Nf3 {[%emt 0:03:14]} Nxc3 {[%emt 0:00:30]} 37. Qxb7 {[%emt 0:00:07]} Ne2+ {[%emt 0:00:12]} 38. Kf1 {[%emt 0:00:55]} Nd4 {[%emt 0:01:55]} 39. Nxd4 {[%emt 0:01:08]} Qxd4 {[%emt 0:00:04]} 40. Qf3 {[%emt 0:00:14]} Qa1+ {[%emt 0:00:59]} 1/2-1/2

[Event "13th Leiden Open 2019"]
[Site "Leiden"]
[Date "2019.07.14"]
[Round "3.3"]
[White "Schekachikhin, Maksim"]
[Black "Lalith Babu M R"]
[Result "1/2-1/2"]
[ECO "D37"]
[WhiteElo "2415"]
[BlackElo "2580"]
[Annotator "ChessBase"]
[PlyCount "55"]
[EventDate "2019.07.08"]
[EventType "swiss"]
[EventCountry "NED"]
[SourceTitle "playchess.com"]
[Source "ChessBase"]
[SourceQuality "1"]
[TimeControl "40/5400+30:1800+30"]

1. d4 {[%emt 0:00:00]} Nf6 {[%emt 0:00:00]} 2. c4 {[%emt 0:00:00]} e6 {[%emt 0:00:00]} 3. Nf3 {[%emt 0:00:02]} d5 {[%emt 0:00:00]} 4. Nc3 {[%emt 0:00:16]} a6 {[%emt 0:00:00]} 5. cxd5 {[%emt 0:01:54]} exd5 {[%emt 0:00:00]} 6. Bg5 {[%emt 0:00:10]} Be6 {[%emt 0:02:05]} 7. e3 {[%emt 0:01:00]} Nbd7 {[%emt 0:00:25]} 8. h3 {[%emt 0:07:28]} Bd6 {[%emt 0:05:22]} 9. Bd3 {[%emt 0:00:22]} c6 10. Bf4 {[%emt 0:02:54]} Qc7 {[%emt 0:00:59]} 11. Bxd6 {[%emt 0:00:10]} Qxd6 {[%emt 0:00:03]} 12. Qc2 {[%emt 0:00:22]} h6 {[%emt 0:03:18]} 13. Nd2 {[%emt 0:10:28]} O-O {[%emt 0:06:33]} 14. O-O {[%emt 0:03:31]} c5 {[%emt 0:06:03]} 15. dxc5 {[%emt 0:03:32]} Nxc5 {[%emt 0:10:13]} 16. Rfd1 {[%emt 0:10:24]} Rac8 {[%emt 0:02:46]} 17. Rac1 {[%emt 0:14:23]} Qb6 {[%emt 0:05:10]} 18. Be2 {[%emt 0:00:47]} Nce4 {[%emt 0:05:47]} 19. Ndxe4 {[%emt 0:04:00]} Nxe4 {[%emt 0:00:28]} 20. Bf3 {[%emt 0:08:19]} Nxc3 {[%emt 0:05:12]} 21. bxc3 {[%emt 0:00:06]} Rc5 {[%emt 0:00:03]} 22. Rd4 {[%emt 0:03:54]} Rfc8 {[%emt 0:01:41]} 23. Qd2 {[%emt 0:01:38]} Qa5 {[%emt 0:08:39]} 24. Rd1 {[%emt 0:05:51]} Qxc3 {[%emt 0:02:35]} 25. Qxc3 {[%emt 0:02:21]} Rxc3 {[%emt 0:00:11]} 26. Bxd5 {[%emt 0:00:04]} Bxd5 {[%emt 0:00:30]} 27. Rxd5 {[%emt 0:00:30]} R8c7 {[%emt 0:00:00]} 28. a4 {[%emt 0:03:38]} 1/2-1/2